Cogmind - Beta 17 @@@ ROGUE MODE // 2026.08.10 @ 16:47:07 Player: Sasha Result: Destroyed by Autobeam Turret with Autobeam Performance ------------- Evolutions (0) 0 Regions Visited (2) 400 Robots Destroyed (23) 115 Value Destroyed (641) 641 Prototype IDs (0) 0 Alien Tech Used (0) 0 Bonus (0) 0 TOTAL SCORE: 1156 Bonus ------- None Cogmind --------- Core Integrity 0/250 Matter 280/300 Energy 226/250 System Corruption 3% Temperature Cool (6) Movement Walking (120) Location -10/Subcaves Parts ------- > --- POWER (1) -------- Ion Engine > --- PROPULSION (2) --- Aluminum Leg Aluminum Leg > --- UTILITY (2) ------ Small Storage Unit Sensor Array > --- WEAPON (2) ------- Small Laser > --- INVENTORY (8) ---- Light Nuclear Core Aluminum Leg Heat Sink ECM Suite Medium Laser Particle Gun Beam Cannon Peak State ------------ > --- POWER ------------ Light Ion Engine > --- PROPULSION ------- Aluminum Leg Aluminum Leg > --- UTILITY ---------- Heat Sink Small Storage Unit > --- WEAPON ----------- Assault Rifle Light Assault Rifle > --- INVENTORY -------- Ion Engine Light Ion Engine Light Nuclear Core Aluminum Leg Aluminum Leg ECM Suite Medium Laser Light Assault Rifle [Rating: 8] Favorites ----------- Power Ion Engine Engine Ion Engine Propulsion Aluminum Leg Leg Aluminum Leg Utility Small Storage Unit Device Heat Sink Storage Small Storage Unit Weapon Medium Laser Energy Gun Medium Laser Ballistic Gun Light Assault Rifle Build | -11 -10 -10 ------- Run | Yrd Mat Sub Slots Evolved . | . . . Power . | . . . Propulsion . | . . . Utility . | . . . Weapon . | . . . Parts Attached 18 | 6 10 2 Power 3 | 1 2 . Engine 3 | 1 2 . Core . | . . . Reactor . | . . . Propulsion 6 | 2 3 1 Treads . | . . . Leg 6 | 2 3 1 Wheel . | . . . Hover . | . . . Flight . | . . . Utility 5 | 1 3 1 Device 4 | . 3 1 Storage 1 | 1 . . Processor . | . . . Hackware . | . . . Protection . | . . . Artifact . | . . . Weapon 4 | 2 2 . Energy Gun 2 | . 2 . Energy Cannon . | . . . Ballistic Gun 2 | 2 . . Ballistic Cannon . | . . . Launcher . | . . . Special Weapon . | . . . Impact Weapon . | . . . Slashing Weapon . | . . . Piercing Weapon . | . . . Special Melee Weapon . | . . . Unidentified Prototypes . | . . . Parts Lost 4 | . 3 1 Power 1 | . 1 . Propulsion 1 | . . 1 Utility 1 | . 1 . Weapon 1 | . 1 . Highest Loss Streak 1 | . 1 1 To Critical Strikes 1 | . . 1 Average Backups 6 | 1 6 7 Power 1 | . 2 1 Propulsion 1 | . 1 1 Utility . | . . 2 Weapon 2 | . 2 3 Tool/Special . | . . . Unused Backups 9 | . 3 6 Power 2 | . 1 1 Propulsion 2 | . 1 1 Utility 1 | . . 1 Weapon 4 | . 1 3 Tool/Special . | . . . Average Slot Usage (%) 99 | . 99 93 Engine 14 | . 14 14 Leg 28 | . 28 28 Device 13 | . 13 14 Storage 14 | . 14 14 Energy Gun 16 | . 16 21 Ballistic Gun 10 | . 11 . Peak Build Rating 8 | 6 8 8 Average Rating 7 | 4 7 7 On Entrance 4 | . 6 8 Avg Prop Armor Cover (%) . | . . . Naked Turns . | . . . Heaviest Build 14 | 13 14 14 Greatest Support 20 | 20 20 20 Greatest Overweight (x) 1 | 1 . . Average Overweight (x) . | . . . Largest Inventory Capacity 8 | 8 8 8 Average Capacity 7 | 7 8 8 Most Carried 8 | 2 8 8 Average Carried 6 | 1 6 7 Final Capacity 8 | 8 8 8 Final Carried 8 | 2 8 7 Class Distribution -------------------- 67% | Mutant 32% | Scavenger-Mutant Dominant Class ---------------- Mutant | -10/Materials Scavenger-Mutant | -10/Subcaves Resources | -11 -10 -10 ----------- Run | Yrd Mat Sub Matter Collected 533 | 195 338 . Remotely . | . . . Salvage Created 847 | . 847 . Parts 45 | . 45 . Haulers Intercepted 1 | . 1 . Recyclers Shooed . | . . . Parts Field Recycled . | . . . Retrieved Matter . | . . . Parts Self-Destructed . | . . . Prevented . | . . . Parts Restored . | . . . Kills | -11 -10 -10 ------- Run | Yrd Mat Sub Combat Hostiles Destroyed 18 | . 18 . Guns 17 | . 17 . Classes Destroyed 6 | . 6 . Worker 1 | . 1 . Hauler 1 | . 1 . Operator 1 | . 1 . Watcher 2 | . 2 . Swarmer 2 | . 2 . Grunt 16 | . 16 . Best Kill Streak 3 | . 3 . Combat Bots Only 3 | . 3 . Max Kills in Single Turn 1 | . 1 . Gunslinging . | . . . Exploded . | . . . Melee . | . . . Uniques/NPCs Destroyed . | . . . Combat | -11 -10 -10 -------- Run | Yrd Mat Sub Hostile Shots Fired 121 | . 93 28 Missed 32 | . 20 12 Hits 89 | . 73 16 Projectile 89 | . 73 16 Critical Strikes 1 | . . 1 Damage Taken 975 | . 802 173 Core 256 | . 207 49 Absorbed by Shields . | . . . Core Remaining (%) 100 | 100 . . Volleys Fired 92 | . 91 1 Largest 2 | . 2 2 Hottest 90 | . 90 90 Shots Fired 184 | . 182 2 Gun 184 | . 182 2 Cannon . | . . . Launcher . | . . . Special . | . . . Kinetic 88 | . 88 . Thermal 96 | . 94 2 Explosive . | . . . Electromagnetic . | . . . Robot Hit Streak 10 | . 10 1 Robot Miss Streak 7 | . 7 1 Penetration Max . | . . . Secondary Targets 1 | . 1 . Max Gunslinging Chain 1 | . 1 . Shots Hit Robots 118 | . 117 1 Core Hits 45 | . 45 . Critical Kills . | . . . Critical Parts Destroyed . | . . . Critical Strikes 5 | . 5 . Burn 5 | . 5 . Melee Attacks . | . . . Impact . | . . . Slashing . | . . . Piercing . | . . . Sneak Attacks . | . . . Combat Hostiles . | . . . Follow-up Attacks . | . . . Damage Inflicted 1347 | . 1337 10 Guns 1338 | . 1328 10 Cannons . | . . . Explosions . | . . . Melee . | . . . Ramming 9 | . 9 . Kinetic 552 | . 552 . Thermal 786 | . 776 10 Explosive . | . . . Electromagnetic . | . . . Impact . | . . . Slashing . | . . . Piercing . | . . . Highest Corruption 3 | . 3 3 Average Corruption 2 | . 2 3 Corruption Purged . | . . . Corruption Blocked . | . . . Effects 17 | . 15 2 Message Errors 3 | . 3 . Matter Fused 2 | . 2 . Heat Flow Errors 3 | . 3 . Energy Discharges 3 | . 2 1 Parts Rejected 1 | . . 1 Data Loss (minor) 4 | . 4 . Alerts 1 | . 1 . Overload Shots . | . . . Overflow Damage . | . . . Projectiles . | . . . Explosions . | . . . Melee . | . . . Knockbacks . | . . . Impact . | . . . Kinetic . | . . . Secondary . | . . . Self-Inflicted Damage . | . . . Shots . | . . . Rammed . | . . . Targets Rammed 1 | . 1 . Kicked 1 | . 1 . Crushed . | . . . Highest Temperature 230 | . 230 . Average Temperature 34 | . 34 . Received Heat Transfer 459 | . 393 66 Siege Activations . | . . . Martial Activations . | . . . Shielding Activations . | . . . Robots Disrupted . | . . . Combat Hostiles . | . . . Robots Corrupted . | . . . Combat Hostiles . | . . . Parts Fried . | . . . Impact Corruptions . | . . . Robots Melted 1 | . 1 . Combat Hostiles 1 | . 1 . Parts Melted 7 | . 7 . Heat Transferred 2489 | . 2464 25 Parts Sabotaged . | . . . Parts Stolen . | . . . Parts Stripped . | . . . Power Chain Reactions . | . . . Alert | -11 -10 -10 ------- Run | Yrd Mat Sub Maximum Alert Level . | . . . Low Security (%) 100 | 100 100 . Level 1 . | . . . Level 2 . | . . . Level 3 . | . . . Level 4 . | . . . Level 5 . | . . . High Security . | . . . Max Security . | . . . Peak Influence 86 | . 86 . Initial . | . . . Average 31 | . 32 . Influence Increases 486 | . 486 . Destroy 0b10 Robot/C 360 | . 360 . Destroy 0b10 Robot/NC 25 | . 25 . Destroy Leader 86 | . 86 . Lose Combat Pursuer 15 | . 15 . Influence Decreases 486 | . 451 35 Entered New Map 18 | . . 18 Time Decay 441 | . 431 10 Lost Part 27 | . 20 7 Squads Dispatched 5 | . 5 . Investigation 3 | . 3 . Extermination . | . . . Reinforcement 2 | . 2 . Assault . | . . . Garrison . | . . . Intercept . | . . . Searches Triggered . | . . . Construction Impeded . | . . . Haulers Reinforced . | . . . Active Scanning Responses . | . . . Cargo Convoy Interrupts . | . . . Stealth | -11 -10 -10 --------- Run | Yrd Mat Sub Distress Signals . | . . . Communications Jammed . | . . . Distress Signals . | . . . Times Spotted 43 | . 34 9 Peak Tracking Total 9 | . 4 9 Tactical Retreats 1 | . 1 . Traps | -11 -10 -10 ------- Run | Yrd Mat Sub Traps Triggered 5 | . 5 . Indirectly . | . . . Trap Hack Attempts . | . . . Triggered . | . . . Disarmed . | . . . Reprogrammed . | . . . Reused . | . . . Traps Extracted . | . . . Installed . | . . . Triggered . | . . . Machines | -11 -10 -10 ---------- Run | Yrd Mat Sub Machines Disabled . | . . . Max in Single Turn . | . . . Machines Repaired . | . . . Machines Dismantled . | . . . Machines Sabotaged . | . . . Overloaded Fab Kills . | . . . Hacking | -11 -10 -10 --------- Run | Yrd Mat Sub Machines Accessed 1 | . 1 . Terminals 1 | . 1 . Fabricators . | . . . Repair Stations . | . . . Recycling Units . | . . . Scanalyzers . | . . . Garrison Access . | . . . Total Hacks 2 | . 2 . Successful . | . . . Failed 2 | . 2 . Catastrophic 1 | . 1 . Database Lockouts . | . . . Manual . | . . . Terminals 2 | . 2 . Fabricators . | . . . Repair Stations . | . . . Recycling Units . | . . . Scanalyzers . | . . . Garrison Access . | . . . Terminal Hacks . | . . . Fabricator Hacks . | . . . Repair Station Hacks . | . . . Recycling Unit Hacks . | . . . Scanalyzer . | . . . Garrison Access Hacks . | . . . Unauthorized Hacks . | . . . Terminals . | . . . Fabricators . | . . . Repair Stations . | . . . Recycling Units . | . . . Scanalyzers . | . . . Garrison Access . | . . . Data Cores Recovered . | . . . Used . | . . . Hacking Detections 1 | . 1 . Full Trace Events . | . . . Feedback Events . | . . . Feedback Blocked . | . . . Robot Schematics Acquired . | . . . Robots Built . | . . . Authchips . | . . . Time . | . . . Total Robot Build Rating . | . . . Part Schematics Acquired . | . . . Parts Built . | . . . Authchips . | . . . Time . | . . . Total Part Build Rating . | . . . Part Studies Acquired . | . . . Parts Repaired . | . . . Time . | . . . Parts Recycled . | . . . Recycled Matter . | . . . Retrieved Matter . | . . . Retrieved Components . | . . . Parts Scanalyzed . | . . . Part Schematics Acquired . | . . . Parts Damaged . | . . . Bothacking | -11 -10 -10 ------------ Run | Yrd Mat Sub Used RIF Installer . | . . . Robots Hacked . | . . . Non-combat . | . . . Combat . | . . . Robot Hacks Applied . | . . . Relay Couplers Released . | . . . Fabnet Peak Effective % . | . . . Robots Rewired . | . . . Allies Hacked . | . . . Hacks Repelled . | . . . Allies | -11 -10 -10 -------- Run | Yrd Mat Sub Total Allies . | . . . Largest Group . | . . . Highest-Rated Group . | . . . Highest-Rated Ally . | . . . Total Orders . | . . . Ally Attacks . | . . . Total Damage . | . . . Kills . | . . . Allies Corrupted . | . . . Allies Melted . | . . . Intel | -11 -10 -10 ------- Run | Yrd Mat Sub Active Infowar (turns) 78 | . 73 5 Sensors 5 | . . 5 Terrain 73 | . 73 . Robot Analysis Total . | . . . Derelict Logs Recovered . | . . . Drone Launches . | . . . Drone Recoveries . | . . . Exploration | -11 -10 -10 ------------- Run | Yrd Mat Sub Turns Passed 1693 | 65 1550 78 Spaces Moved 1073 | 45 970 58 Core 3 | 3 . . Treads . | . . . Legs 1070 | 42 970 58 Wheels . | . . . Hover . | . . . Flight . | . . . Fastest Speed 50 | 50 120 120 Average Speed 120 | 121 120 120 Slowest Speed 190 | 190 120 120 Overloaded Moves . | . . . Propulsion Burnouts . | . . . Robots Hopped . | . . . Potential Cave-ins . | . . . Cave-ins Triggered . | . . . Exploration Rate (%) 36 | 3 99 8 Regions Visited 2 Branch Regions 1 Pre-discovered Areas . | . . . Known Exits Taken . | . . . Unknown Exits Taken 2 | 1 1 . Scrap Searched . | . . . Spaces Dug . | . . . Terrain Destroyed . | . . . Melee . | . . . Projectile . | . . . AOE . | . . . Terrain Rammed . | . . . Walls Destroyed . | . . . Machines Disabled . | . . . Actions | -11 -10 -10 --------- Run | Yrd Mat Sub Total 1303 | 53 1185 65 Wait 91 | . 88 3 Move 1071 | 44 969 58 Hop . | . . . Pick Up 19 | 3 16 . Fast Attach 7 | 5 2 . Attach 5 | 1 2 2 Detach 1 | . . 1 Swap 6 | . 6 . Drop 10 | . 10 . Fire 92 | . 91 1 Melee . | . . . Ram . | . . . Kick 1 | . 1 . Crush . | . . . Escape Stasis . | . . . Rewire . | . . . Trap . | . . . Miscellaneous . | . . . Route ------- -11/Scrapyard -10/Materials (discovered 6 exits: [*Mat x3] / [*Min x2] / [*Sub]) -10/Subcaves (discovered 1 exit: [*Rec]) History --------- Turn | Location | Event 30 | -11/Scrapyard | Discovered new exit (range 14) 66 | -11/Scrapyard | Entered Materials 206 | -10/Materials | Discovered new exit (range 16) 310 | -10/Materials | Build established: Mutant 408 | -10/Materials | Core integrity fell below 50% 450 | -10/Materials | Discovered new exit (range 5) 512 | -10/Materials | Discovered new exit (range 10) 559 | -10/Materials | Discovered new exit (range 5) 769 | -10/Materials | Discovered new exit (range 3) 1070 | -10/Materials | Discovered new exit (range 16) 1339 | -10/Materials | Core integrity fell below 20% 1455 | -10/Materials | Build established: Scavenger-Mutant 1616 | -10/Materials | Entered Subcaves 1617 | -10/Subcaves | Approached by a straggling Scientist 1635 | -10/Subcaves | A Subdweller sparked back to life 1635 | -10/Subcaves | A Subdweller sparked back to life 1635 | -10/Subcaves | A Subdweller sparked back to life 1690 | -10/Subcaves | Discovered new exit (range 13) 1694 | -10/Subcaves | Destroyed by Autobeam Turret with Autobeam Last Messages --------------- 01592_ Connecting with Terminal... LOCATION=UNKNOWN AMBIENT_HEAT=-10 GOAL=ESCAPE 01617_ 4Q-HIP(c): "Thank the algorithms! I was beginning to lose hope I'd never make it past all the Subs lurking out here." 01618_ H3-QR2(z) destroyed. 01620_ 4Q-HIP(c): "Hey, let me tag along and I can get us both out of this nasty situation. At least I think I can... The group I got separated from was talking about a shortcut back to the UFD." 01635_ VT-RII(R) creaks and sparks as it begins to move. 01635_ RW-2GR(R) creaks and sparks as it begins to move. 01635_ MD-HNI(R) creaks and sparks as it begins to move. 01640_ VT-RII(R) affixes Scrap Shield Fragment to Scrap Shield. 01643_ Critical hit (Destroy). 01643_ Aluminum Leg destroyed. 01650_ System corrupted: Med. Laser rejected. 01680_ System corrupted: Energy discharge (-77). 01690_ EXIT=FOUND 01692_ S-10 Pest destroyed. Map ----- +----------------------------------------------------+ | ?????????????????##? ??## ###????????????? | | ????????????????? #? #??? ##??##???????? | | ????????????????? ## ## #???# ### #???????? | | ????????????????? # #???# #???????? | | ???????????????## ### ##### #???????? | | ??????????###### ## #????????? | | ?????????## #?# ##???????? | | ?????????#" "" #### #???????? | | ?????????" ### ### #???????? | | ?????????#""" ###[ ## ##?# #???????? | | ?????????# &" ### ## #??## #???????? | | ?????????###### ### ## #??# #???????? | | ?????????????## ## ## ## ### #???????? | | ?????????????# ######?#### #???????? | | ????????????## ##????????## #???????? | | ????????????# ######????## #???????? | | ????????????# ##????# ##???????? | | ????????????## ##### ###?## #????????? | | ?????????????####???## ### ##???????? | | ?????????????????????## #???????? | | ???????????????#??????### ##???????? | | ???????????????#""??????## ### #????????? | | ???????????????#" ?????# ##?# ##????????? | | ???????????????#" #### ## ##?? ##?????????? | | ???????????????#""t s% # ## # #??????????? | | ??????????????#< * @ #??????????? | | ???????????????#""t ss #?????????? | | ???????????????#" # ! ## ###?????????? | | ???????????????#" ??## %% #? #???????????? | | ???????????????#""?????## *! #???????????? | | ???????????????#????????# # #???????????? | | ????????????????????????# #### #???????????? | | ????????????????????????# #???? ##???????????? | | ???????????????????????? #????? ##????????????? | | ???????????????????????? ?????###?????????????? | | ???????????????????????# ## ?????????????????????? | | ???????????????????????##??#?????????????????????? | | ?????????????????????????????????????????????????? | | ?????????????????????????????????????????????????? | | ?????????????????????????????????????????????????? | | ?????????????????????????????????????????????????? | | ?????????????????????????????????????????????????? | | ?????????????????????????????????????????????????? | | ?????????????????????????????????????????????????? | | ?????????????????????????????????????????????????? | | ?????????????????????????????????????????????????? | | ?????????????????????????????????????????????????? | | ?????????????????????????????????????????????????? | | ?????????????????????????????????????????????????? | | ?????????????????????????????????????????????????? | +----------------------------------------------------+ Best States ------------- Heat Dissipation 35 Energy Generation 10 Energy Capacity 250 Matter Stores 300 Matter Capacity 300 Sight Range 16 Robot Scan Range 14 Terrain Scan Range 14 Terrain Scan Density 10 Evasion (%) 55 Item Schematics ----------------- None Robot Schematics ------------------ None Fabricated ------------ Nothing Repaired ---------- Nothing Studied --------- None Alien Tech Used ----------------- None Achievements -------------- None Challenges ------------ None Game ------ Seed WaveSupercompositeWyrmplate Manual? 0 Play Time 00:19:00 Cumulative 47.4 hours Start 2026.08.10 @ 16:29:16 End 2026.08.10 @ 16:47:07 Sessions 1 Manual Loads 0 Difficulty Rogue Special Mode None Game No. 20 Rogue 20 Adventurer 0 Explorer 0 Win Type - Total 0 Types 0/0/0/0/0/0/0/0/0/0 Lore% 18 Gallery% 31 Achievement% 24 Wizard Run 0 Options --------- Layout 0 ASCII 0 Keyboard 1 Movement Vi Keybinds 0 Fullscreen 1 Font 16/SmallcapsGlow Map View 88x55 Zoom Use 0% Tactical HUD 1 Map Filters NONE Filters NONE Steam 1 RUN: dd134cc8-d57f-4f41-be1d-a559d5f9a0ea